[Event "Titled Tuesday Blitz December 13 Early 2022"]
[White "Rodriguez Fontecha, Marcos"]
[Black "Gonzalez, Francisco Silva"]
[WhiteFideId "2256576"]
[BlackFideId "1512285"]
[WhiteElo "2263"]
[BlackElo "2220"]
[Result "1-0"]
[Round "11"]
[TimeControl "180+1"]
[Date "2022.12.14"]
[WhiteClock "0:00:13"]
[BlackClock "0:00:48"]

1. Nf3 {[%clk 0:03:00]}  d5 {[%clk 0:02:56]} 2. g3 {[%clk 0:02:55]}  c6 {[%clk 0:02:56]} 3. Bg2 {[%clk 0:02:55]}  Bg4 {[%clk 0:02:55]} 4. Ne5 {[%clk 0:02:54]}  Bf5 {[%clk 0:02:53]} 5. c4 {[%clk 0:02:55]}  dxc4 {[%clk 0:02:50]} 6. Nxc4 {[%clk 0:02:53]}  Nd7 {[%clk 0:02:48]} 7. d4 {[%clk 0:02:51]}  Ngf6 {[%clk 0:02:45]} 8. Qb3 {[%clk 0:02:50]}  Be6 {[%clk 0:02:40]} 9. Qc2 {[%clk 0:02:46]}  g6 {[%clk 0:02:33]} 10. O-O {[%clk 0:02:45]}  Bg7 {[%clk 0:02:33]} 11. e4 {[%clk 0:02:43]}  Bxc4 {[%clk 0:02:27]} 12. Qxc4 {[%clk 0:02:42]}  Nb6 {[%clk 0:02:26]} 13. Qb3 {[%clk 0:02:40]}  a5 {[%clk 0:02:24]} 14. Nc3 {[%clk 0:02:34]}  a4 {[%clk 0:02:24]} 15. Qc2 {[%clk 0:02:32]}  O-O {[%clk 0:02:22]} 16. Be3 {[%clk 0:02:28]}  e6 {[%clk 0:02:21]} 17. Rfd1 {[%clk 0:02:25]}  Qc7 {[%clk 0:02:16]} 18. Rac1 {[%clk 0:01:59]}  Rfc8 {[%clk 0:02:15]} 19. Qe2 {[%clk 0:01:54]}  Qd8 {[%clk 0:02:07]} 20. d5 {[%clk 0:01:47]}  exd5 {[%clk 0:02:06]} 21. e5 {[%clk 0:01:36]}  Nfd7 {[%clk 0:01:57]} 22. e6 {[%clk 0:01:33]}  Nf6 {[%clk 0:01:52]} 23. e7 {[%clk 0:01:24]}  Qxe7 {[%clk 0:01:44]} 24. Bxb6 {[%clk 0:01:23]}  Qb4 {[%clk 0:01:45]} 25. Bd4 {[%clk 0:01:14]}  Re8 {[%clk 0:01:42]} 26. Qf3 {[%clk 0:01:06]}  Ne4 {[%clk 0:01:38]} 27. Bxg7 {[%clk 0:01:06]}  Kxg7 {[%clk 0:01:35]} 28. Nxe4 {[%clk 0:01:06]}  dxe4 {[%clk 0:01:35]} 29. Qc3+ {[%clk 0:01:06]}  Qxc3 {[%clk 0:01:34]} 30. Rxc3 {[%clk 0:01:06]}  Re7 {[%clk 0:01:31]} 31. g4 {[%clk 0:01:02]}  f5 {[%clk 0:01:30]} 32. gxf5 {[%clk 0:01:02]}  gxf5 {[%clk 0:01:30]} 33. Rc5 {[%clk 0:01:02]}  Kf6 {[%clk 0:01:30]} 34. Bh3 {[%clk 0:00:58]}  Rg8+ {[%clk 0:01:26]} 35. Kf1 {[%clk 0:00:58]}  Rg5 {[%clk 0:01:25]} 36. Rd6+ {[%clk 0:00:56]}  Re6 {[%clk 0:01:25]} 37. Rd7 {[%clk 0:00:56]}  Rh5 {[%clk 0:01:24]} 38. Bg2 {[%clk 0:00:44]}  b6 {[%clk 0:01:22]} 39. Rc3 {[%clk 0:00:38]}  Rxh2 {[%clk 0:01:20]} 40. Rh3 {[%clk 0:00:38]}  Rxh3 {[%clk 0:01:20]} 41. Bxh3 {[%clk 0:00:39]}  Ke5 {[%clk 0:01:17]} 42. Rxh7 {[%clk 0:00:38]}  b5 {[%clk 0:01:16]} 43. Rf7 {[%clk 0:00:36]}  Rf6 {[%clk 0:01:14]} 44. Rxf6 {[%clk 0:00:34]}  Kxf6 {[%clk 0:01:14]} 45. Ke2 {[%clk 0:00:33]}  Ke5 {[%clk 0:01:13]} 46. Kd2 {[%clk 0:00:31]}  b4 {[%clk 0:01:13]} 47. Bf1 {[%clk 0:00:29]}  Kd4 {[%clk 0:01:12]} 48. Bh3 {[%clk 0:00:28]}  Ke5 {[%clk 0:01:09]} 49. Bf1 {[%clk 0:00:28]}  Kd4 {[%clk 0:01:09]} 50. Ba6 {[%clk 0:00:27]}  f4 {[%clk 0:01:07]} 51. Bb7 {[%clk 0:00:27]}  c5 {[%clk 0:01:05]} 52. a3 {[%clk 0:00:16]}  bxa3 {[%clk 0:01:04]} 53. bxa3 {[%clk 0:00:17]}  c4 {[%clk 0:01:04]} 54. Bc6 {[%clk 0:00:16]}  c3+ {[%clk 0:01:03]} 55. Kc2 {[%clk 0:00:16]}  e3 {[%clk 0:01:03]} 56. fxe3+ {[%clk 0:00:16]}  fxe3 {[%clk 0:01:03]} 57. Bb5 {[%clk 0:00:15]}  Kc5 {[%clk 0:00:58]} 58. Ba6 {[%clk 0:00:13]}  Kd4 {[%clk 0:00:57]} 59. Bd3 {[%clk 0:00:13]}  e2 {[%clk 0:00:46]} 60. Bxe2 {[%clk 0:00:13]}  Ke3 {[%clk 0:00:47]} 61. Bb5 {[%clk 0:00:13]}  Kd4 {[%clk 0:00:47]} 62. Bd3 {[%clk 0:00:13]}  Kc5 {[%clk 0:00:47]} 63. Kxc3 {[%clk 0:00:13]}  Kb6 {[%clk 0:00:47]} 64. Kb4 {[%clk 0:00:14]}  Kc6 {[%clk 0:00:46]} 65. Kxa4 {[%clk 0:00:14]}  Kb6 {[%clk 0:00:47]} 66. Kb4 {[%clk 0:00:14]}  Kc6 {[%clk 0:00:46]} 67. a4 {[%clk 0:00:15]}  Kb6 {[%clk 0:00:47]} 68. a5+ {[%clk 0:00:15]}  Ka7 {[%clk 0:00:47]} 69. Kb5 {[%clk 0:00:16]}  Kb8 {[%clk 0:00:47]} 70. Kb6 {[%clk 0:00:16]}  Ka8 {[%clk 0:00:48]} 71. a6 {[%clk 0:00:17]}  Kb8 {[%clk 0:00:48]} 72. Bf5 {[%clk 0:00:16]}  Ka8 {[%clk 0:00:48]} 73. Be4+ {[%clk 0:00:17]}  Kb8 {[%clk 0:00:48]} 74. a7+ {[%clk 0:00:17]}  Kc8 {[%clk 0:00:48]} 75. a8=Q+ {[%clk 0:00:18]}  Kd7 {[%clk 0:00:49]} 76. Qd5+ {[%clk 0:00:17]}  Kc8 {[%clk 0:00:48]} 77. Bh1 {[%clk 0:00:13]} 1-0


[Site "https://www.chess.com"]

[Event "Titled Tuesday Blitz December 13 Early 2022"]
[White "Rosenberg, Evan S"]
[Black "Manukyan, Sargis A."]
[WhiteFideId "2019299"]
[BlackFideId "13303970"]
[WhiteElo "2426"]
[BlackElo "2187"]
[Result "1/2-1/2"]
[Round "11"]
[TimeControl "180+1"]
[Date "2022.12.14"]
[WhiteClock "0:00:06"]
[BlackClock "0:00:08"]

1. d4 {[%clk 0:03:00]}  Nf6 {[%clk 0:02:58]} 2. Nf3 {[%clk 0:03:01]}  g6 {[%clk 0:02:56]} 3. Nc3 {[%clk 0:03:00]}  d5 {[%clk 0:02:55]} 4. Bf4 {[%clk 0:03:01]}  Bg7 {[%clk 0:02:55]} 5. Nb5 {[%clk 0:03:01]}  Na6 {[%clk 0:02:55]} 6. e3 {[%clk 0:03:02]}  O-O {[%clk 0:02:55]} 7. h3 {[%clk 0:03:02]}  c5 {[%clk 0:02:55]} 8. Be2 {[%clk 0:02:54]}  Ne4 {[%clk 0:02:50]} 9. O-O {[%clk 0:02:50]}  Bd7 {[%clk 0:02:35]} 10. a4 {[%clk 0:02:36]}  c4 {[%clk 0:02:24]} 11. c3 {[%clk 0:02:32]}  Bxb5 {[%clk 0:02:18]} 12. axb5 {[%clk 0:02:32]}  Nc7 {[%clk 0:02:18]} 13. b6 {[%clk 0:02:08]}  axb6 {[%clk 0:02:12]} 14. Rxa8 {[%clk 0:02:09]}  Nxa8 {[%clk 0:02:13]} 15. Qa4 {[%clk 0:01:56]}  Qe8 {[%clk 0:02:04]} 16. Qb4 {[%clk 0:01:45]}  b5 {[%clk 0:02:00]} 17. Ra1 {[%clk 0:01:41]}  Nb6 {[%clk 0:01:55]} 18. Ra7 {[%clk 0:01:29]}  Qd7 {[%clk 0:01:45]} 19. Ne5 {[%clk 0:01:23]}  Bxe5 {[%clk 0:01:45]} 20. Bxe5 {[%clk 0:01:22]}  f6 {[%clk 0:01:41]} 21. Bg4 {[%clk 0:01:07]}  e6 {[%clk 0:01:22]} 22. Bf4 {[%clk 0:00:59]}  h5 {[%clk 0:01:05]} 23. Bh6 {[%clk 0:00:50]}  Re8 {[%clk 0:00:50]} 24. Bf3 {[%clk 0:00:47]}  g5 {[%clk 0:00:42]} 25. Bxh5 {[%clk 0:00:44]}  Rb8 {[%clk 0:00:31]} 26. Bg6 {[%clk 0:00:43]}  Nd6 {[%clk 0:00:26]} 27. Qa5 {[%clk 0:00:34]}  Nbc8 {[%clk 0:00:23]} 28. Ra8 {[%clk 0:00:30]}  b6 {[%clk 0:00:22]} 29. Qa3 {[%clk 0:00:22]}  Qb7 {[%clk 0:00:17]} 30. Rxb8 {[%clk 0:00:21]}  Qxb8 {[%clk 0:00:18]} 31. h4 {[%clk 0:00:16]}  gxh4 {[%clk 0:00:17]} 32. Bf4 {[%clk 0:00:16]}  Qc7 {[%clk 0:00:17]} 33. Qa8 {[%clk 0:00:13]}  Kg7 {[%clk 0:00:17]} 34. Bh5 {[%clk 0:00:10]}  Qb7 {[%clk 0:00:16]} 35. Qa3 {[%clk 0:00:09]}  Qd7 {[%clk 0:00:16]} 36. Qa6 {[%clk 0:00:09]}  Nf5 {[%clk 0:00:13]} 37. Bg4 {[%clk 0:00:08]}  Nfe7 {[%clk 0:00:13]} 38. Qa8 {[%clk 0:00:07]}  Nd6 {[%clk 0:00:13]} 39. Qb8 {[%clk 0:00:07]}  Nf7 {[%clk 0:00:13]} 40. Qxb6 {[%clk 0:00:07]}  Ng6 {[%clk 0:00:12]} 41. Bxe6 {[%clk 0:00:07]}  Qe8 {[%clk 0:00:11]} 42. Bxd5 {[%clk 0:00:05]}  Nxf4 {[%clk 0:00:11]} 43. exf4 {[%clk 0:00:06]}  Qe1+ {[%clk 0:00:10]} 44. Kh2 {[%clk 0:00:07]}  Qxf2 {[%clk 0:00:11]} 45. Qc7 {[%clk 0:00:07]}  Qg3+ {[%clk 0:00:11]} 46. Kg1 {[%clk 0:00:06]}  Qe1+ {[%clk 0:00:11]} 47. Kh2 {[%clk 0:00:06]}  Qg3+ {[%clk 0:00:11]} 48. Kg1 {[%clk 0:00:06]}  Qe1+ {[%clk 0:00:08]} 49. Kh2 {[%clk 0:00:06]}  Qg3+ {[%clk 0:00:08]} 1/2-1/2


[Site "https://www.chess.com"]

[Event "Titled Tuesday Blitz December 13 Early 2022"]
[White "Rustemov, Alexander"]
[Black "Derraugh, Geordie"]
[WhiteFideId "4119002"]
[BlackFideId "2603950"]
[WhiteElo "2772"]
[BlackElo "2082"]
[Result "1-0"]
[Round "11"]
[TimeControl "180+1"]
[Date "2022.12.14"]
[WhiteClock "0:00:10"]
[BlackClock "0:00:03"]

1. d4 {[%clk 0:02:56]}  Nf6 {[%clk 0:02:59]} 2. c4 {[%clk 0:02:56]}  e6 {[%clk 0:02:59]} 3. Nf3 {[%clk 0:02:56]}  c5 {[%clk 0:02:59]} 4. d5 {[%clk 0:02:56]}  exd5 {[%clk 0:02:59]} 5. cxd5 {[%clk 0:02:57]}  d6 {[%clk 0:03:00]} 6. Nc3 {[%clk 0:02:58]}  g6 {[%clk 0:03:01]} 7. h3 {[%clk 0:02:59]}  Bg7 {[%clk 0:03:00]} 8. e4 {[%clk 0:02:59]}  O-O {[%clk 0:03:00]} 9. Bd3 {[%clk 0:03:00]}  a6 {[%clk 0:03:01]} 10. a4 {[%clk 0:02:59]}  Nbd7 {[%clk 0:03:00]} 11. O-O {[%clk 0:02:59]}  Re8 {[%clk 0:03:01]} 12. Re1 {[%clk 0:02:57]}  Ne5 {[%clk 0:02:49]} 13. Nxe5 {[%clk 0:02:57]}  Rxe5 {[%clk 0:02:50]} 14. Bf4 {[%clk 0:02:57]}  Nh5 {[%clk 0:02:50]} 15. Bh2 {[%clk 0:02:56]}  Qh4 {[%clk 0:02:45]} 16. Qf3 {[%clk 0:02:56]}  Bd7 {[%clk 0:02:43]} 17. g4 {[%clk 0:02:54]}  Rg5 {[%clk 0:02:37]} 18. Bf1 {[%clk 0:02:36]}  Be5 {[%clk 0:01:50]} 19. Bxe5 {[%clk 0:02:12]}  dxe5 {[%clk 0:01:51]} 20. Bg2 {[%clk 0:02:10]}  Nf4 {[%clk 0:01:47]} 21. Qg3 {[%clk 0:02:05]}  Qh6 {[%clk 0:01:46]} 22. Ne2 {[%clk 0:02:01]}  Nxg2 {[%clk 0:01:23]} 23. Kxg2 {[%clk 0:02:00]}  f5 {[%clk 0:01:02]} 24. f3 {[%clk 0:01:59]}  fxg4 {[%clk 0:00:50]} 25. fxg4 {[%clk 0:01:57]}  Qg7 {[%clk 0:00:45]} 26. Ng1 {[%clk 0:01:56]}  Bxg4 {[%clk 0:00:39]} 27. hxg4 {[%clk 0:01:49]}  h5 {[%clk 0:00:39]} 28. Kh2 {[%clk 0:01:41]}  Rxg4 {[%clk 0:00:38]} 29. Qe3 {[%clk 0:01:26]}  g5 {[%clk 0:00:18]} 30. Rf1 {[%clk 0:01:19]}  Rf8 {[%clk 0:00:12]} 31. Nh3 {[%clk 0:01:05]}  Rff4 {[%clk 0:00:08]} 32. Nxf4 {[%clk 0:00:56]}  gxf4 {[%clk 0:00:08]} 33. Qf2 {[%clk 0:00:56]}  Qf6 {[%clk 0:00:03]} 34. Rg1 {[%clk 0:00:55]}  Kf7 {[%clk 0:00:02]} 35. Rxg4 {[%clk 0:00:53]}  hxg4 {[%clk 0:00:03]} 36. Kg2 {[%clk 0:00:52]}  f3+ {[%clk 0:00:02]} 37. Kg1 {[%clk 0:00:47]}  Qf4 {[%clk 0:00:03]} 38. Rf1 {[%clk 0:00:43]}  Qxe4 {[%clk 0:00:03]} 39. Qd2 {[%clk 0:00:36]}  Qd4+ {[%clk 0:00:02]} 40. Qxd4 {[%clk 0:00:36]}  cxd4 {[%clk 0:00:03]} 41. Re1 {[%clk 0:00:28]}  Kf6 {[%clk 0:00:02]} 42. Kf2 {[%clk 0:00:22]}  d3 {[%clk 0:00:01]} 43. Ke3 {[%clk 0:00:19]}  e4 {[%clk 0:00:02]} 44. Kxe4 {[%clk 0:00:15]}  d2 {[%clk 0:00:02]} 45. Rd1 {[%clk 0:00:13]}  f2 {[%clk 0:00:02]} 46. Ke3 {[%clk 0:00:13]}  g3 {[%clk 0:00:02]} 47. Kf3 {[%clk 0:00:13]}  Ke5 {[%clk 0:00:01]} 48. Kxg3 {[%clk 0:00:13]}  f1=Q {[%clk 0:00:01]} 49. Rxf1 {[%clk 0:00:12]}  Kxd5 {[%clk 0:00:01]} 50. Kf3 {[%clk 0:00:12]}  Kc4 {[%clk 0:00:02]} 51. Ke2 {[%clk 0:00:11]}  Kb3 {[%clk 0:00:02]} 52. Kxd2 {[%clk 0:00:11]}  Kxb2 {[%clk 0:00:02]} 53. Rf7 {[%clk 0:00:09]}  b5 {[%clk 0:00:02]} 54. axb5 {[%clk 0:00:09]}  axb5 {[%clk 0:00:03]} 55. Rb7 {[%clk 0:00:10]} 1-0


[Site "https://www.chess.com"]

[Event "Titled Tuesday Blitz December 13 Early 2022"]
[White "Salman, Pavel"]
[Black "Ashraf, Artin"]
[WhiteFideId "24153753"]
[BlackFideId "22514805"]
[WhiteElo "2187"]
[BlackElo "2243"]
[Result "0-1"]
[Round "11"]
[TimeControl "180+1"]
[Date "2022.12.14"]
[WhiteClock "0:00:01"]
[BlackClock "0:01:08"]

1. Nf3 {[%clk 0:03:00]}  d5 {[%clk 0:02:57]} 2. g3 {[%clk 0:03:01]}  Nc6 {[%clk 0:02:55]} 3. Bg2 {[%clk 0:03:01]}  e5 {[%clk 0:02:54]} 4. O-O {[%clk 0:03:01]}  Nf6 {[%clk 0:02:54]} 5. d4 {[%clk 0:03:00]}  e4 {[%clk 0:02:53]} 6. Ne5 {[%clk 0:03:00]}  Bd6 {[%clk 0:02:52]} 7. c4 {[%clk 0:02:49]}  Nxe5 {[%clk 0:02:35]} 8. dxe5 {[%clk 0:02:49]}  Bxe5 {[%clk 0:02:36]} 9. cxd5 {[%clk 0:02:49]}  O-O {[%clk 0:02:34]} 10. Nc3 {[%clk 0:02:42]}  Bf5 {[%clk 0:02:32]} 11. Bg5 {[%clk 0:02:39]}  Bxc3 {[%clk 0:02:27]} 12. bxc3 {[%clk 0:02:38]}  Qxd5 {[%clk 0:02:27]} 13. Bxf6 {[%clk 0:02:34]}  Qxd1 {[%clk 0:02:26]} 14. Rfxd1 {[%clk 0:02:33]}  gxf6 {[%clk 0:02:24]} 15. Rd4 {[%clk 0:02:07]}  Rfd8 {[%clk 0:02:17]} 16. Rad1 {[%clk 0:02:06]}  Rxd4 {[%clk 0:02:14]} 17. Rxd4 {[%clk 0:02:07]}  Re8 {[%clk 0:02:13]} 18. e3 {[%clk 0:02:06]}  c6 {[%clk 0:02:07]} 19. a4 {[%clk 0:01:59]}  h5 {[%clk 0:02:01]} 20. h4 {[%clk 0:01:43]}  Kf8 {[%clk 0:01:59]} 21. Bf1 {[%clk 0:01:39]}  Ke7 {[%clk 0:01:55]} 22. Be2 {[%clk 0:01:36]}  Bg6 {[%clk 0:01:53]} 23. a5 {[%clk 0:01:08]}  Rd8 {[%clk 0:01:52]} 24. Rb4 {[%clk 0:01:08]}  Rd7 {[%clk 0:01:52]} 25. g4 {[%clk 0:00:58]}  hxg4 {[%clk 0:01:50]} 26. Bxg4 {[%clk 0:00:59]}  f5 {[%clk 0:01:51]} 27. Be2 {[%clk 0:00:59]}  f6 {[%clk 0:01:49]} 28. Kg2 {[%clk 0:00:58]}  Bf7 {[%clk 0:01:46]} 29. Kg3 {[%clk 0:00:57]}  Kd6 {[%clk 0:01:42]} 30. Kf4 {[%clk 0:00:56]}  Be6 {[%clk 0:01:40]} 31. Rd4+ {[%clk 0:00:24]}  Ke7 {[%clk 0:01:38]} 32. Rb4 {[%clk 0:00:16]}  Rd2 {[%clk 0:01:34]} 33. Rxb7+ {[%clk 0:00:14]}  Kd6 {[%clk 0:01:35]} 34. h5 {[%clk 0:00:08]}  Rxe2 {[%clk 0:01:34]} 35. Kg3 {[%clk 0:00:09]}  Re1 {[%clk 0:01:28]} 36. h6 {[%clk 0:00:09]}  Rh1 {[%clk 0:01:28]} 37. h7 {[%clk 0:00:09]}  Bd7 {[%clk 0:01:27]} 38. Rxa7 {[%clk 0:00:05]}  Rxh7 {[%clk 0:01:25]} 39. a6 {[%clk 0:00:06]}  Rg7+ {[%clk 0:01:25]} 40. Kh2 {[%clk 0:00:04]}  Rg8 {[%clk 0:01:26]} 41. Rb7 {[%clk 0:00:04]}  Ra8 {[%clk 0:01:17]} 42. a7 {[%clk 0:00:04]}  c5 {[%clk 0:01:17]} 43. Kg3 {[%clk 0:00:04]}  Kc6 {[%clk 0:01:17]} 44. Rb8 {[%clk 0:00:03]}  Rxa7 {[%clk 0:01:17]} 45. Rf8 {[%clk 0:00:04]}  Ra3 {[%clk 0:01:15]} 46. Rxf6+ {[%clk 0:00:04]}  Kc7 {[%clk 0:01:16]} 47. c4 {[%clk 0:00:03]}  Rc3 {[%clk 0:01:16]} 48. Kf4 {[%clk 0:00:04]}  Rxc4 {[%clk 0:01:17]} 49. Ke5 {[%clk 0:00:04]}  Rc2 {[%clk 0:01:16]} 50. Kd5 {[%clk 0:00:04]}  c4 {[%clk 0:01:16]} 51. Kd4 {[%clk 0:00:04]}  c3 {[%clk 0:01:15]} 52. Ra6 {[%clk 0:00:03]}  Rc1 {[%clk 0:01:09]} 53. Ra3 {[%clk 0:00:01]}  Rd1+ {[%clk 0:01:08]} 0-1


[Site "https://www.chess.com"]

[Event "Titled Tuesday Blitz December 13 Early 2022"]
[White "Sarana, Alexey"]
[Black "Dubov, Daniil"]
[WhiteFideId "24133795"]
[BlackFideId "24126055"]
[WhiteElo "2708"]
[BlackElo "2792"]
[Result "1/2-1/2"]
[Round "11"]
[TimeControl "180+1"]
[Date "2022.12.13"]
[WhiteClock "0:00:21"]
[BlackClock "0:01:07"]

1. d4 {[%clk 0:02:55]}  d5 {[%clk 0:02:59]} 2. c4 {[%clk 0:02:55]}  e6 {[%clk 0:02:59]} 3. Nc3 {[%clk 0:02:56]}  Nf6 {[%clk 0:02:59]} 4. Nf3 {[%clk 0:02:52]}  Be7 {[%clk 0:02:59]} 5. g3 {[%clk 0:02:50]}  O-O {[%clk 0:02:57]} 6. Bg2 {[%clk 0:02:51]}  Nbd7 {[%clk 0:02:58]} 7. Qd3 {[%clk 0:02:45]}  a6 {[%clk 0:02:52]} 8. b3 {[%clk 0:02:43]}  b5 {[%clk 0:02:50]} 9. cxd5 {[%clk 0:02:41]}  exd5 {[%clk 0:02:50]} 10. O-O {[%clk 0:02:40]}  b4 {[%clk 0:02:49]} 11. Na4 {[%clk 0:02:39]}  a5 {[%clk 0:02:49]} 12. Bf4 {[%clk 0:02:36]}  Ba6 {[%clk 0:02:46]} 13. Qc2 {[%clk 0:02:36]}  Bd6 {[%clk 0:02:47]} 14. Rfc1 {[%clk 0:02:30]}  Re8 {[%clk 0:02:27]} 15. Bxd6 {[%clk 0:02:21]}  cxd6 {[%clk 0:02:27]} 16. e3 {[%clk 0:02:21]}  Nb6 {[%clk 0:02:14]} 17. Nxb6 {[%clk 0:02:19]}  Qxb6 {[%clk 0:02:15]} 18. Nd2 {[%clk 0:02:09]}  Rec8 {[%clk 0:02:01]} 19. Qb2 {[%clk 0:02:06]}  h6 {[%clk 0:01:52]} 20. Bh3 {[%clk 0:02:04]}  Rxc1+ {[%clk 0:01:51]} 21. Rxc1 {[%clk 0:02:05]}  Bd3 {[%clk 0:01:50]} 22. a4 {[%clk 0:01:28]}  bxa3 {[%clk 0:01:35]} 23. Qxa3 {[%clk 0:01:27]}  Qb4 {[%clk 0:01:32]} 24. Qxb4 {[%clk 0:00:24]}  axb4 {[%clk 0:01:33]} 25. Rc8+ {[%clk 0:00:24]}  Rxc8 {[%clk 0:01:32]} 26. Bxc8 {[%clk 0:00:25]}  Ne4 {[%clk 0:01:32]} 27. Nxe4 {[%clk 0:00:20]}  dxe4 {[%clk 0:01:29]} 28. Bb7 {[%clk 0:00:20]}  g5 {[%clk 0:01:18]} 29. f3 {[%clk 0:00:20]}  exf3 {[%clk 0:01:12]} 30. Bxf3 {[%clk 0:00:21]}  f5 {[%clk 0:01:09]} 31. Bd5+ {[%clk 0:00:20]}  Kg7 {[%clk 0:01:09]} 32. Kf2 {[%clk 0:00:21]}  Kf6 {[%clk 0:01:08]} 33. Kf3 {[%clk 0:00:21]}  Bc2 {[%clk 0:01:06]} 34. Kf2 {[%clk 0:00:21]}  Be4 {[%clk 0:01:03]} 35. Bxe4 {[%clk 0:00:17]}  fxe4 {[%clk 0:01:03]} 36. g4 {[%clk 0:00:17]}  d5 {[%clk 0:01:03]} 37. h3 {[%clk 0:00:18]}  Kf7 {[%clk 0:01:03]} 38. Kg3 {[%clk 0:00:18]}  Ke7 {[%clk 0:01:03]} 39. Kg2 {[%clk 0:00:19]}  Ke6 {[%clk 0:01:04]} 40. Kg3 {[%clk 0:00:19]}  Ke7 {[%clk 0:01:05]} 41. Kg2 {[%clk 0:00:20]}  Ke6 {[%clk 0:01:06]} 42. Kg3 {[%clk 0:00:21]}  Ke7 {[%clk 0:01:07]} 1/2-1/2


[Site "https://www.chess.com"]

[Event "Titled Tuesday Blitz December 13 Early 2022"]
[White "Seo, Jung Min"]
[Black "Salinas Herrera, Pablo"]
[WhiteFideId "1734687"]
[BlackFideId "3407128"]
[WhiteElo "2457"]
[BlackElo "2557"]
[Result "1-0"]
[Round "11"]
[TimeControl "180+1"]
[Date "2022.12.13"]
[WhiteClock "0:00:29"]
[BlackClock "0:00:03"]

1. e4 {[%clk 0:02:58]}  c5 {[%clk 0:02:59]} 2. Nf3 {[%clk 0:02:58]}  e6 {[%clk 0:03:00]} 3. c3 {[%clk 0:02:58]}  d5 {[%clk 0:03:00]} 4. exd5 {[%clk 0:02:58]}  Qxd5 {[%clk 0:03:01]} 5. d4 {[%clk 0:02:58]}  Nf6 {[%clk 0:03:01]} 6. Be3 {[%clk 0:02:55]}  cxd4 {[%clk 0:02:52]} 7. Nxd4 {[%clk 0:02:53]}  Be7 {[%clk 0:02:37]} 8. Nd2 {[%clk 0:02:53]}  O-O {[%clk 0:02:36]} 9. c4 {[%clk 0:02:47]}  Qd7 {[%clk 0:02:32]} 10. Be2 {[%clk 0:02:46]}  Rd8 {[%clk 0:02:25]} 11. O-O {[%clk 0:02:45]}  b6 {[%clk 0:02:21]} 12. Bf3 {[%clk 0:02:44]}  Bb7 {[%clk 0:02:21]} 13. Bxb7 {[%clk 0:02:43]}  Qxb7 {[%clk 0:02:21]} 14. Qf3 {[%clk 0:02:43]}  Qxf3 {[%clk 0:02:21]} 15. N2xf3 {[%clk 0:02:43]}  Ng4 {[%clk 0:02:20]} 16. Rfd1 {[%clk 0:02:32]}  Nxe3 {[%clk 0:02:20]} 17. fxe3 {[%clk 0:02:32]}  Rc8 {[%clk 0:02:16]} 18. Rac1 {[%clk 0:02:30]}  Na6 {[%clk 0:02:03]} 19. Nb5 {[%clk 0:02:30]}  Bc5 {[%clk 0:01:59]} 20. Kf2 {[%clk 0:02:29]}  Nc7 {[%clk 0:01:50]} 21. Nc3 {[%clk 0:02:23]}  Rd8 {[%clk 0:01:43]} 22. Ke2 {[%clk 0:02:23]}  f6 {[%clk 0:01:41]} 23. a3 {[%clk 0:02:20]}  Kf7 {[%clk 0:01:40]} 24. b4 {[%clk 0:02:19]}  Be7 {[%clk 0:01:41]} 25. Rxd8 {[%clk 0:02:19]}  Rxd8 {[%clk 0:01:40]} 26. Nd4 {[%clk 0:02:19]}  Rc8 {[%clk 0:01:13]} 27. Nc6 {[%clk 0:02:16]}  Ne8 {[%clk 0:01:07]} 28. b5 {[%clk 0:02:06]}  Nd6 {[%clk 0:00:59]} 29. Kd3 {[%clk 0:01:46]}  Nb7 {[%clk 0:00:56]} 30. a4 {[%clk 0:01:46]}  a5 {[%clk 0:00:48]} 31. Rd1 {[%clk 0:01:38]}  Rc7 {[%clk 0:00:29]} 32. Kc2 {[%clk 0:01:37]}  Ke8 {[%clk 0:00:30]} 33. Ne2 {[%clk 0:01:26]}  Bc5 {[%clk 0:00:27]} 34. Ned4 {[%clk 0:01:25]}  Kf7 {[%clk 0:00:24]} 35. Rd3 {[%clk 0:01:25]}  g6 {[%clk 0:00:24]} 36. Nb3 {[%clk 0:01:23]}  Be7 {[%clk 0:00:23]} 37. e4 {[%clk 0:01:18]}  h5 {[%clk 0:00:19]} 38. e5 {[%clk 0:01:13]}  fxe5 {[%clk 0:00:13]} 39. Nxe5+ {[%clk 0:01:13]}  Kg7 {[%clk 0:00:13]} 40. Nc6 {[%clk 0:01:13]}  Bf6 {[%clk 0:00:13]} 41. Re3 {[%clk 0:01:11]}  Kf7 {[%clk 0:00:14]} 42. Rf3 {[%clk 0:01:11]}  Kg7 {[%clk 0:00:13]} 43. Rd3 {[%clk 0:01:09]}  e5 {[%clk 0:00:12]} 44. c5 {[%clk 0:01:05]}  bxc5 {[%clk 0:00:11]} 45. Nbxa5 {[%clk 0:01:01]}  e4 {[%clk 0:00:11]} 46. Rd5 {[%clk 0:01:01]}  Nxa5 {[%clk 0:00:08]} 47. Nxa5 {[%clk 0:01:01]}  Ra7 {[%clk 0:00:08]} 48. b6 {[%clk 0:00:57]}  Ra6 {[%clk 0:00:04]} 49. b7 {[%clk 0:00:50]}  Rb6 {[%clk 0:00:04]} 50. Rd7+ {[%clk 0:00:50]}  Kh6 {[%clk 0:00:05]} 51. Nc6 {[%clk 0:00:45]}  Rb2+ {[%clk 0:00:03]} 52. Kc1 {[%clk 0:00:45]}  Rxg2 {[%clk 0:00:02]} 53. b8=Q {[%clk 0:00:44]}  e3 {[%clk 0:00:02]} 54. Qf8+ {[%clk 0:00:42]}  Kg5 {[%clk 0:00:02]} 55. Rd5+ {[%clk 0:00:42]}  Kg4 {[%clk 0:00:02]} 56. Qxf6 {[%clk 0:00:42]}  e2 {[%clk 0:00:03]} 57. Qg5+ {[%clk 0:00:39]}  Kh3 {[%clk 0:00:03]} 58. Rd3+ {[%clk 0:00:38]}  Kxh2 {[%clk 0:00:03]} 59. Qh4+ {[%clk 0:00:38]}  Kg1 {[%clk 0:00:04]} 60. Re3 {[%clk 0:00:37]}  Kf1 {[%clk 0:00:04]} 61. Qf4+ {[%clk 0:00:32]}  Rf2 {[%clk 0:00:04]} 62. Qe4 {[%clk 0:00:29]}  h4 {[%clk 0:00:03]} 63. Qh1# {[%clk 0:00:29]} 1-0


[Site "https://www.chess.com"]

[Event "Titled Tuesday Blitz December 13 Early 2022"]
[White "Stanisz, Patryk"]
[Black "Schut, Han"]
[WhiteFideId "1123106"]
[BlackFideId "1005561"]
[WhiteElo "2069"]
[BlackElo "2024"]
[Result "0-1"]
[Round "11"]
[TimeControl "180+1"]
[Date "2022.12.14"]
[WhiteClock "0:00:09"]
[BlackClock "0:00:16"]

1. d4 {[%clk 0:03:00]}  Nf6 {[%clk 0:02:58]} 2. c4 {[%clk 0:03:01]}  g6 {[%clk 0:02:58]} 3. Nc3 {[%clk 0:03:01]}  d5 {[%clk 0:02:58]} 4. Nf3 {[%clk 0:02:58]}  Bg7 {[%clk 0:02:57]} 5. Qb3 {[%clk 0:02:58]}  dxc4 {[%clk 0:02:57]} 6. Qxc4 {[%clk 0:02:59]}  O-O {[%clk 0:02:56]} 7. Bf4 {[%clk 0:02:59]}  a6 {[%clk 0:02:57]} 8. Rd1 {[%clk 0:02:56]}  c6 {[%clk 0:02:53]} 9. e3 {[%clk 0:02:54]}  b5 {[%clk 0:02:50]} 10. Qd3 {[%clk 0:02:52]}  Nh5 {[%clk 0:02:34]} 11. Be5 {[%clk 0:02:50]}  Nd7 {[%clk 0:02:22]} 12. Bxg7 {[%clk 0:02:48]}  Nxg7 {[%clk 0:02:14]} 13. Be2 {[%clk 0:02:48]}  Qc7 {[%clk 0:01:59]} 14. Rc1 {[%clk 0:02:48]}  e5 {[%clk 0:01:58]} 15. O-O {[%clk 0:02:34]}  exd4 {[%clk 0:01:51]} 16. exd4 {[%clk 0:02:30]}  Nf6 {[%clk 0:01:35]} 17. d5 {[%clk 0:02:23]}  Rd8 {[%clk 0:01:07]} 18. Rfd1 {[%clk 0:02:05]}  Bf5 {[%clk 0:00:54]} 19. Qd2 {[%clk 0:01:55]}  b4 {[%clk 0:00:50]} 20. Qd4 {[%clk 0:01:48]}  bxc3 {[%clk 0:00:39]} 21. Qxf6 {[%clk 0:01:47]}  c2 {[%clk 0:00:35]} 22. Rd2 {[%clk 0:01:40]}  Rxd5 {[%clk 0:00:27]} 23. Nd4 {[%clk 0:01:19]}  Re8 {[%clk 0:00:21]} 24. Nxf5 {[%clk 0:01:18]}  Nxf5 {[%clk 0:00:21]} 25. Rdxc2 {[%clk 0:00:54]}  Nd4 {[%clk 0:00:21]} 26. Kf1 {[%clk 0:00:36]}  Nxe2 {[%clk 0:00:17]} 27. Rxe2 {[%clk 0:00:34]}  Rxe2 {[%clk 0:00:17]} 28. Kxe2 {[%clk 0:00:35]}  Qd7 {[%clk 0:00:16]} 29. Qxc6 {[%clk 0:00:13]}  Rd2+ {[%clk 0:00:16]} 30. Ke1 {[%clk 0:00:09]}  Rd1+ {[%clk 0:00:16]} 31. Ke2 {[%clk 0:00:09]}  Qd3# {[%clk 0:00:16]} 0-1


[Site "https://www.chess.com"]